fUSD/lending_fUSD_20240224
["ID","MTS","AMOUNT","RATE_DAILY","PERIOD"]
[315045885,1708771832793,-200.0,0.00024061,2]
[315045886,1708771832803,-595.86,0.00024126,2]
[315045887,1708771832813,-166.0,0.00024167,2]
[315045888,1708771832823,-312.64531825,0.00024191,2]
[315045889,1708771832833,-2000.0,0.0002424,2]
[315045890,1708771832843,-200.0,0.0002424,2]
[315045891,1708771832853,-2000.0,0.0002424,2]
[315045892,1708771832863,-200.0,0.0002424,2]
[315045893,1708771832872,-200.0,0.0002424,2]
[315045894,1708771832882,-2000.0,0.0002424,2]
[315045895,1708771832891,-595.86,0.00024245,2]
[315045896,1708771832901,-164.78,0.00024282,2]
[315045897,1708771832910,-428.45,0.00024357,2]
[315045898,1708771832920,-595.86,0.00024364,2]
[315045899,1708771832931,-1823.02,0.00024384,2]
[315045900,1708771832941,-1827.7,0.00024384,2]
[315045901,1708771832951,-2000.0,0.00024482,2]
[315045902,1708771832965,-200.0,0.00024482,2]
[315045903,1708771832975,-998.06510638,0.00024482,2]
[315045919,1708771837986,-1001.93489362,0.00024482,2]
[315045920,1708771837996,-200.0,0.00024482,2]
[315045921,1708771838005,-200.0,0.00024482,2]
[315045922,1708771838015,-342.74010638,0.00024483,2]
[315045923,1708771838044,-253.11989362,0.00024483,2]
[315045924,1708771838054,-800.0,0.00024575,2]
[315045925,1708771838064,-165.27,0.00024594,2]
[315045926,1708771838074,-595.86,0.00024602,2]
[315045927,1708771838087,-315.95,0.00024603,2]
[315045928,1708771838097,-800.0,0.0002463,2]
[315045929,1708771838107,-312.64531825,0.00024655,2]
[315045930,1708771838117,-200.0,0.00024657,2]
[315045931,1708771838127,-200.0,0.00024657,2]
[315045932,1708771838138,-200.0,0.00024657,2]
[315045933,1708771838148,-152.0,0.00024657,2]
[315045934,1708771838158,-164.78,0.00024686,2]
[315045935,1708771838167,-595.86,0.00024721,2]
[315045936,1708771838177,-2000.0,0.00024727,2]
[315045937,1708771838186,-200.0,0.00024727,2]
[315045938,1708771838196,-2000.0,0.00024727,2]
[315045939,1708771838205,-200.0,0.00024727,2]
[315045940,1708771838214,-200.0,0.00024727,2]
[315045941,1708771838224,-166.3,0.00024752,2]
[315045942,1708771838233,-595.86,0.00024839,2]
[315045943,1708771838242,-166.0,0.00024939,2]
[315045944,1708771838252,-1784.12752056,0.00024974,2]
[315045945,1708771838262,-200.0,0.00024974,2]
[315045946,1708771838271,-200.0,0.00024974,2]
[315045947,1708771838280,-200.0,0.00024974,2]
[315045948,1708771838290,-134.50614796,0.00024978,2]
[315045949,1708771839269,-253.89399304,0.00024978,2]
[315045950,1708771839282,-300.32,0.00024978,2]
[315045951,1708771839295,-288.78782083,0.00024978,2]
[315045952,1708771839339,-1331.60904511,0.00024978,2]
[315045953,1708771839349,-2309.11700695,0.00024978,2]
[315045954,1708771839359,-158.57694188,0.00024999,2]
[315045955,1708771839372,-89.78986706,0.00024999,2]
[315045956,1708771839384,-348.42495035,0.00025,2]
[315045957,1708771839394,-1043.43750865,0.00025,2]
[315045958,1708771839406,-12081.56249135,0.00025,2]
[315045959,1708771839417,-750.0,0.00025,3]
[315045960,1708771839427,-451.83750865,0.00025,2]
[315046142,1708771841325,-250.0,0.00024658,2]
[315046144,1708771841335,-487.94367793,0.00025,2]
[315046146,1708771841345,-458.41520241,0.00025068,3]
[315046153,1708771841404,-42.95479759,0.00025068,3]
[315046156,1708771841414,-167.12,0.00025078,3]
[315046157,1708771841423,-334.24,0.00025088,3]
[315046159,1708771841433,-164.78,0.00025091,2]
[315046161,1708771841442,-209.52167543,0.00025098,3]
[315046164,1708771841466,-299.57396,0.00025098,3]
[315046165,1708771841496,-159.38436457,0.00025098,3]
[315046166,1708771841505,-1326.06632207,0.00025108,3]
[315046167,1708771841527,-10.89367793,0.00025108,3]
[315046168,1708771841536,-312.64531825,0.00025118,2]
[315046169,1708771841546,-18.45524399,0.00025135,5]
[315046174,1708771845142,-184.54475601,0.00025135,5]
[315046175,1708771845151,-484.201548,0.000252,3]
[315046176,1708771845161,-1500.0,0.00025376,2]
[315046177,1708771845172,-200.0,0.00025493,2]
[315046178,1708771845181,-164.78,0.00025496,2]
[315046179,1708771845191,-162.5392602,0.00025532,2]
[315046180,1708771845200,-4984.22325509,0.00025532,2]
[315046181,1708771845210,-312.64531825,0.00025582,2]
[315046182,1708771845219,-1425.26,0.00025656,2]
[315046183,1708771845229,-166.0,0.00025711,2]
[315046184,1708771845239,-867.73,0.00025781,2]
[315046185,1708771845248,-164.78,0.000259,2]
[315046186,1708771845257,-867.73,0.00025916,2]
[315046187,1708771845266,-150.01,0.00025976,2]
[315046188,1708771845275,-1500.0,0.00026,2]
[315046189,1708771845286,-13158.2,0.00026,2]
[315046190,1708771845296,-588.28599778,0.00026,7]
[315046191,1708771845308,-20000.0,0.00026,2]
[315046192,1708771845318,-12259.3482936,0.00026,2]
[315046193,1708771845327,-1000.0,0.00026004,2]
[315046194,1708771845337,-2500.0,0.00026004,2]
[315046195,1708771845347,-2332.0,0.00026027,2]
[315046196,1708771845357,-312.64531825,0.00026045,2]
[315046197,1708771845366,-867.73,0.00026052,2]
[315046198,1708771845376,-1815.09,0.00026057,2]
[315046199,1708771845387,-150.0,0.00026079,2]
[315046200,1708771845396,-1826.31,0.00026096,2]
[315046204,1708771845586,-781.08,0.00026103,2]
[315046205,1708771845595,-781.08,0.00026103,2]
[315046206,1708771845605,-781.08,0.00026103,2]
[315046208,1708771845614,-781.08,0.00026103,2]
[315046209,1708771845623,-781.08,0.00026103,2]
[315046210,1708771845632,-781.08,0.00026103,2]
[315046211,1708771845641,-781.08,0.00026103,2]
[315046212,1708771845651,-781.08,0.00026103,2]
[315046213,1708771845659,-781.08,0.00026103,2]
[315046214,1708771845669,-781.08,0.00026103,2]
[315046215,1708771845678,-781.08,0.00026103,2]
[315046216,1708771845687,-781.08,0.00026103,2]
[315046217,1708771845695,-781.08,0.00026103,2]
[315046218,1708771845705,-781.08,0.00026103,2]
[315046219,1708771845715,-781.08,0.00026103,2]
[315046220,1708771845723,-781.08,0.00026103,2]
[315046221,1708771845732,-781.08,0.00026103,2]
[315046222,1708771845741,-781.08,0.00026103,2]
[315046223,1708771845751,-781.08,0.00026103,2]
[315046224,1708771845759,-781.08,0.00026103,2]
[315046225,1708771845768,-781.08,0.00026103,2]
[315046226,1708771845777,-781.08,0.00026103,2]
[315046227,1708771845786,-781.08,0.00026103,2]
[315046228,1708771845796,-781.16638063,0.00026103,2]
[315046229,1708771845805,-391.116,0.00026104,2]
[315046230,1708771845814,-1377.189,0.00026104,2]
[315046231,1708771845823,-2696.0,0.00026104,2]
[315046232,1708771845832,-1870.0,0.00026104,2]
[315046234,1708771845843,-710.0,0.00026104,2]
[315046236,1708771845853,-455.0,0.00026104,2]
[315046238,1708771845862,-955.0,0.00026104,2]
[315046240,1708771845872,-534.91,0.00026104,2]
[315046242,1708771845881,-1996.016,0.00026104,2]
[315046243,1708771845891,-217.0,0.00026104,2]
[315046244,1708771845900,-600.0,0.00026104,2]
[315046245,1708771845909,-1231.0,0.00026104,2]
[315046246,1708771845919,-1263.062,0.00026104,2]
[315046247,1708771845928,-277.0,0.00026104,2]
[315046248,1708771845938,-1007.0,0.00026104,2]
[315046250,1708771845947,-995.678,0.00026104,2]
[315046252,1708771845956,-499.736,0.00026104,2]
[315046253,1708771845965,-1138.333,0.00026104,2]
[315046254,1708771845974,-302.0,0.00026104,2]
[315046255,1708771845983,-322.293,0.00026104,2]
[315046256,1708771845992,-2905.0,0.00026104,2]
[315046257,1708771846001,-343.235,0.00026104,2]
[315046258,1708771846010,-1548.316,0.00026104,2]
[315046259,1708771846018,-5748.295,0.00026104,2]
[315046260,1708771846027,-42691.0,0.00026104,2]
[315046261,1708771846036,-4168.352,0.00026104,2]
[315046262,1708771846045,-7437.0,0.00026104,2]
[315046263,1708771846054,-2317.254,0.00026104,2]
[315046264,1708771846063,-8185.0,0.00026104,2]
[315046265,1708771846072,-231.693,0.00026104,2]
[315046266,1708771846082,-2966.882,0.00026104,2]
[315046267,1708771846092,-19898.0,0.00026104,2]
[315046268,1708771846102,-158.0,0.00026104,2]
[315046269,1708771846111,-159.35,0.00026104,2]
[315046270,1708771846121,-250.0,0.00026104,2]
[315046271,1708771846130,-203.0,0.00026104,2]
[315046272,1708771846139,-236.538,0.00026104,2]
[315046273,1708771846148,-155.0,0.00026152,2]
[315046274,1708771846157,-1774.94,0.00026158,2]
[315046275,1708771846167,-283.0,0.00026171,2]
[315046276,1708771846176,-291.0,0.00026171,2]
[315046277,1708771846185,-867.73,0.00026188,2]
[315046278,1708771846194,-1842.71,0.00026235,2]
[315046279,1708771846204,-555.24804968,0.00026281,2]
[315046280,1708771846215,-164.78,0.00026305,2]
[315046281,1708771846224,-867.73,0.00026323,2]
[315046282,1708771846234,-195194.35415131,0.00026381,2]
[315046283,1708771846247,-8727.53653375,0.00026381,2]
[315046284,1708771846258,-1036.486,0.00026381,2]
[315046285,1708771846320,-456.0336,0.00026381,2]
[315046286,1708771846385,-6.59148084,0.00026381,2]
[315046287,1708771846400,-4683.84511757,0.00026381,2]
[315046288,1708771846496,-40390.68579381,0.00026381,2]
[315046289,1708771846519,-258.24345965,0.00026381,2]
[315046290,1708771846531,-404.20345887,0.00026381,2]
[315046291,1708771846551,-9337.05540698,0.00026381,2]
[315046293,1708771846562,-25361.89368996,0.00026381,2]
[315046295,1708771846574,-13802.35758168,0.00026381,2]
[315046296,1708771846593,-10099.3867,0.00026381,2]
[315046297,1708771846608,-1587.03163157,0.00026381,2]
[315046298,1708771846620,-5993.3732317,0.00026381,2]
[315046311,1708772006058,5476.94057884,0.00023,30]
[315046312,1708772052107,2884.07445657,0.00012,30]
[315046313,1708772059727,200.0,0.00026249,30]
[315046314,1708772059791,200.0,0.00026249,30]
[315046315,1708772059834,200.0,0.00026249,30]
[315046316,1708772059888,200.0,0.00026249,30]
[315046317,1708772059944,200.0,0.00026249,30]
[315046319,1708772067775,177.78,0.000219,2]
[315046320,1708772164347,203.0,0.00021956,2]
[315046321,1708772165891,150.72031213,0.00022,2]
[315046322,1708772230015,200.0,0.00026118,30]
[315046323,1708772230126,344.93673444,0.00026118,30]
[315046325,1708772504238,427.0,0.0002222,2]
[315046327,1708772553658,413.92,0.00020538,2]
[315046329,1708772693592,177.78,0.000219,2]
[315046330,1708772775551,2000.0,0.00022269,2]
[315046331,1708772787198,250.0,0.00022271,2]
[315046333,1708772885460,203.0,0.00022334,2]
[315046334,1708773021202,393.22,0.00020446,2]
[315046337,1708773032202,-345.18116793,0.00022447,2]
[315046338,1708773032260,-140.66069845,0.00022447,2]
[315046339,1708773032271,-3089.97232221,0.00022486,2]
[315046340,1708773032409,-1885.68277575,0.00022486,2]
[315046341,1708773032420,-4169.2990344,0.00022487,2]
[315046342,1708773032430,-300.0,0.00022491,2]
[315046343,1708773032439,-640.0,0.00022492,2]
[315046344,1708773032450,-1500.0,0.000225,2]
[315046345,1708773032460,-154.38,0.00022578,2]
[315046346,1708773032471,-393.22,0.0002271,2]
[315046347,1708773032480,-5000.0,0.000228,2]
[315046348,1708773032489,-160.87929355,0.000228,2]
[315046349,1708773032498,-816.4763001,0.000228,2]
[315046350,1708773032507,-555.24804968,0.000228,2]
[315046351,1708773032520,-466.28508829,0.00022856,2]
[315046352,1708773032529,-861.88,0.0002289,3]
[315046353,1708773032539,-430.94,0.0002289,3]
[315046354,1708773032549,-215.47,0.0002289,3]
[315046355,1708773032561,-646.46,0.0002289,3]
[315046356,1708773032572,-155.0,0.00022898,2]
[315046357,1708773032582,-9724.32495581,0.00022898,2]
[315046364,1708773038110,-5767.68352407,0.00022898,2]
[315046365,1708773038120,-157.99370638,0.00022899,4]
[315046366,1708773038130,-500.0,0.00022899,2]
[315046367,1708773038141,-500.0,0.00022899,2]
[315046368,1708773038152,-500.0,0.00022899,2]
[315046369,1708773038162,-500.0,0.00022899,2]
[315046370,1708773038170,-500.0,0.00022899,2]
[315046371,1708773038179,-500.0,0.00022899,2]
[315046372,1708773038188,-500.0,0.00022899,2]
[315046373,1708773038198,-500.0,0.00022899,2]
[315046374,1708773038209,-248.33300003,0.00022899,2]
[315046375,1708773038220,-181199.35737242,0.000229,2]
[315046588,1708773040708,-1204.07079851,0.000229,2]
[315046590,1708773040720,-4019.627223,0.000229,2]
[315046612,1708773040928,-628.15349302,0.000229,2]
[315046679,1708773041631,-433.4417485,0.000229,2]
[315046684,1708773043193,-180.24494754,0.000229,2]
[315046685,1708773043202,-769.75505246,0.000229,2]
[315046686,1708773043247,-661.63740925,0.000229,2]
[315046687,1708773043303,-5054.32488791,0.000229,2]
[315046688,1708773043511,-3869.84839464,0.000229,2]
[315046689,1708773043527,-3097.70687465,0.000229,2]
[315046690,1708773043538,-51815.13428476,0.000229,2]
[315046693,1708773043550,-348.04079335,0.000229,2]
[315046697,1708773043578,-43568.92303138,0.000229,2]
[315046699,1708773043594,-322.29037678,0.000229,2]
[315046701,1708773043605,-6186.82102777,0.000229,2]
[315046704,1708773043629,-664.00152642,0.000229,2]
[315046706,1708773043641,-569.85819587,0.000229,2]
[315046710,1708773043672,-284.87244543,0.000229,2]
[315046718,1708773046302,-700.01577309,0.000228,2]
[315046719,1708773046312,-7437.93657392,0.000229,2]
[315046720,1708773046359,-2745.70143799,0.000229,2]
[315046721,1708773046477,-448.95736917,0.000229,2]
[315046731,1708773256486,151.0,0.00024658,7]
[315046732,1708773282734,212.096195,0.00024658,7]
[315046733,1708773283935,160.80632,0.00024658,7]
[315046734,1708773286269,151.0,0.00024658,7]
[315046735,1708773286928,212.096195,0.00024658,7]
[315046736,1708773292404,160.80632,0.00024658,7]
[315046737,1708773294239,151.0,0.00024658,7]
[315046738,1708773323325,281.871852,0.00024658,7]
[315046739,1708773334523,151.0,0.00024658,7]
[315046740,1708773335821,151.0,0.00024658,7]
[315046741,1708773340413,151.0,0.00024658,7]
[315046742,1708773354420,151.0,0.00024658,7]
[315046743,1708773356541,219.964703,0.00024658,7]
[315046744,1708773381295,163.548371,0.00024658,7]
[315046745,1708773387478,163.548371,0.00024658,7]
[315046746,1708773391905,151.0,0.00024658,7]
[315046747,1708773400830,151.0,0.00024658,7]
[315046749,1708773407064,257.913827,0.00024658,7]
[315046750,1708773408719,151.0,0.00024658,7]
[315046751,1708773410073,257.913827,0.00024658,7]
[315046752,1708773416521,151.0,0.00024658,7]
[315046753,1708773420600,151.0,0.00024658,7]
[315046754,1708773433798,-245.0,0.00027397,30]
[315046755,1708773434135,213.247929,0.00024658,7]
[315046756,1708773436613,231.527668,0.00024658,7]
[315046757,1708773439466,151.0,0.00024658,7]
[315046758,1708773442809,213.247929,0.00024658,7]
[315046759,1708773446695,151.0,0.00024658,7]
[315046760,1708773455287,151.0,0.00024658,7]
[315046761,1708773462463,190.886575,0.00024658,7]
[315046762,1708773463515,151.0,0.00024658,7]
[315046763,1708773465934,190.886575,0.00024658,7]
[315046764,1708773476662,151.0,0.00024658,7]
[315046765,1708773483489,151.0,0.00024658,7]
[315046766,1708773484519,151.0,0.00024658,7]
[315046767,1708773498873,151.0,0.00024658,7]
[315046768,1708773511476,151.0,0.00024658,7]
[315046769,1708773513463,151.0,0.00024658,7]
[315046770,1708773516413,151.0,0.00024658,7]
[315046771,1708773518606,151.0,0.00024658,7]
[315046772,1708773529308,163.502728,0.00024658,7]
[315046774,1708773562700,19972.92714674,0.0002,2]
[315046775,1708773563848,353.89,0.00020719,2]
[315046776,1708773567129,151.0,0.00024658,7]
[315046777,1708773569564,151.0,0.00024658,7]
[315046778,1708773572108,384.330468,0.00024658,7]
[315046779,1708773577356,384.330468,0.00024658,7]
[315046780,1708773580141,151.0,0.00024658,7]
[315046781,1708773584247,151.0,0.00024658,7]
[315046782,1708773587624,151.0,0.00024658,7]
[315046784,1708773593569,151.0,0.00024658,7]
[315046785,1708773604932,151.0,0.00024658,7]
[315046786,1708773615151,151.0,0.00024658,7]
[315046787,1708773630144,186.380375,0.00024658,7]
[315046788,1708773636557,151.0,0.00024658,7]
[315046789,1708773651924,171.797918,0.00024658,7]
[315046790,1708773654224,151.0,0.00024658,7]
[315046791,1708773659391,171.797918,0.00024658,7]
[315046792,1708773662308,151.0,0.00024658,7]
[315046793,1708773675018,174.52,0.00022296,2]
[315046794,1708773692887,151.0,0.00024658,7]
[315046795,1708773698148,232.122445,0.00024658,7]
[315046796,1708773699300,151.0,0.00024658,7]
[315046797,1708773703909,232.122445,0.00024658,7]
[315046798,1708773710821,157.152312,0.00024658,7]
[315046799,1708773729076,182.949569,0.00024658,7]
[315046800,1708773744500,151.0,0.00024658,7]
[315046801,1708773746006,151.0,0.00024658,7]
[315046802,1708773751329,151.0,0.00024658,7]
[315046803,1708773753218,151.0,0.00024658,7]
[315046804,1708773758314,151.0,0.00024658,7]
[315046805,1708773764330,151.0,0.00024658,7]
[315046806,1708773769515,193.507387,0.00024658,7]
[315046807,1708773770872,151.0,0.00024658,7]
[315046808,1708773787985,191.923136,0.00024658,7]
[315046809,1708773793883,191.923136,0.00024658,7]
[315046810,1708773794544,153.828288,0.00024658,7]
[315046811,1708773798841,151.0,0.00024658,7]
[315046812,1708773800763,151.0,0.00024658,7]
[315046813,1708773803083,151.0,0.00024658,7]
[315046814,1708773818173,154.618126,0.00024658,7]
[315046815,1708773823040,154.618126,0.00024658,7]
[315046816,1708773844584,151.0,0.00024658,7]
[315046817,1708773878831,151.0,0.00024658,7]
[315046818,1708773879658,151.0,0.00024658,7]
[315046819,1708773882837,151.0,0.00024658,7]
[315046820,1708773888503,151.0,0.00024658,7]
[315046821,1708773895259,151.0,0.00024658,7]
[315046822,1708773900203,151.0,0.00024658,7]
[315046823,1708773916085,152.913644,0.00024658,7]
[315046824,1708773932056,151.0,0.00024658,7]
[315046825,1708773938940,151.0,0.00024658,7]
[315046826,1708773942724,156.058769,0.00024658,7]
[315046827,1708773965564,203.0,0.00021845,2]
[315046828,1708773969334,151.0,0.00024658,7]
[315046829,1708773978613,254.713257,0.00024658,7]
[315046830,1708773994080,208.9102,0.00024658,7]
[315046832,1708774000049,151.0,0.00024658,7]
[315046833,1708774000602,208.9102,0.00024658,7]
[315046834,1708774001577,336.19,0.00020487,2]
[315046835,1708774011826,151.0,0.00024658,7]
[315046836,1708774017323,151.0,0.00024658,7]
[315046837,1708774022370,157.532721,0.00024658,7]
[315046838,1708774033154,151.0,0.00024658,7]
[315046839,1708774035744,151.962782,0.00024658,7]
[315046840,1708774041312,151.0,0.00024658,7]
[315046841,1708774051444,151.0,0.00024658,7]
[315046842,1708774054062,151.0,0.00024658,7]
[315046844,1708774059281,151.0,0.00024658,7]
[315046845,1708774068640,488.0,0.00022364,2]
[315046846,1708774070029,151.0,0.00024658,7]
[315046847,1708774105253,151.0,0.00024658,7]
[315046848,1708774107740,151.0,0.00024658,7]
[315046849,1708774109136,151.0,0.00024658,7]
[315046850,1708774113831,151.0,0.00024658,7]
[315046851,1708774115300,151.0,0.00024658,7]
[315046852,1708774121207,165.361032,0.00024658,7]
[315046853,1708774123639,151.0,0.00024658,7]
[315046854,1708774131030,151.0,0.00024658,7]
[315046855,1708774133487,240.0,0.00024658,7]
[315046856,1708774133615,153.256382,0.00024658,7]
[315046857,1708774140638,151.0,0.00024658,7]
[315046858,1708774142843,240.0,0.00024658,7]
[315046861,1708774149218,151.0,0.00024658,7]
[315046862,1708774156750,151.0,0.00024658,7]
[315046864,1708774159487,172.730823,0.00024658,7]
[315046865,1708774164271,172.730823,0.00024658,7]
[315046868,1708774176621,151.0,0.00024658,7]
[315046869,1708774181360,151.0,0.00024658,7]
[315046870,1708774182658,151.0,0.00024658,7]
[315046871,1708774195364,151.0,0.00024658,7]
[315046872,1708774200232,151.0,0.00024658,7]
[315046873,1708774205149,169.248,0.00024658,7]
[315046874,1708774229370,352.041056,0.00024658,7]
[315046875,1708774230917,151.0,0.00024658,7]
[315046886,1708774232325,-155.0,0.00022464,3]
[315046887,1708774232334,-891.0,0.00022466,2]
[315046888,1708774232344,-226.30687486,0.00022662,2]
[315046889,1708774232354,-226.30687486,0.00022662,2]
[315046890,1708774232363,-226.30687486,0.00022662,2]
[315046891,1708774232372,-512.0,0.00022666,2]
[315046892,1708774232382,-4687.7741,0.000227,2]
[315046893,1708774232391,-10920.456,0.000227,2]
[315046894,1708774232400,-150.0,0.00022738,2]
[315046895,1708774232409,-336.19,0.00022751,2]
[315046896,1708774232419,-502.76,0.0002279,3]
[315046897,1708774232428,-251.38,0.0002279,3]
[315046898,1708774232437,-754.16,0.0002279,3]
[315046899,1708774232446,-359.27642216,0.00022798,2]
[315046900,1708774232455,-3472.91148076,0.00022798,2]
[315046901,1708774233084,352.041056,0.00024658,7]
[315046902,1708774233282,151.0,0.00024658,7]
[315046903,1708774234549,-482.25955554,0.00022463,2]
[315046904,1708774234558,-315.47886411,0.00022798,2]
[315046905,1708774234595,-479.84771151,0.00022798,2]
[315046906,1708774234606,-897.91251549,0.00022798,2]
[315046907,1708774234678,-1406.39950175,0.00022798,2]
[315046908,1708774234689,-2830.33525585,0.00022798,2]
[315046909,1708774234716,-40597.10467053,0.00022798,2]
[315046910,1708774234726,-333.28888803,0.000228,2]
[315046911,1708774234735,-8987.63076414,0.000228,2]
[315046912,1708774234747,-710.31920169,0.000228,2]
[315046913,1708774234757,-37934.28112846,0.000228,2]
[315046914,1708774234831,-1444.17292848,0.000228,2]
[315047027,1708774238342,-167.58,0.0002279,3]
[315047028,1708774238352,-38879.71477723,0.000228,2]
[315047029,1708774238361,-2360.3754,0.000228,2]
[315047030,1708774238371,-21171.253,0.000228,2]
[315047031,1708774238381,-500.0,0.000228,2]
[315047032,1708774238391,-6788.6509,0.000228,2]
[315047033,1708774238400,-7559.53304239,0.000228,2]
[315047034,1708774238427,-15971.00355761,0.000228,2]
[315047035,1708774238437,-1622.00874234,0.000228,2]
[315047036,1708774238447,-5000.0,0.000228,2]
[315047037,1708774238457,-228.29444649,0.000228,2]
[315047038,1708774238466,-714.41676257,0.000228,2]
[315047039,1708774238475,-555.24804968,0.000228,2]
[315047040,1708774238484,-15492.00847988,0.00022899,2]
[315047041,1708774238494,-180.24494753,0.000229,2]
[315047042,1708774238503,-249221.05265139,0.000229,2]
[315047043,1708774238619,-8672.78615574,0.000229,2]
[315047044,1708774238631,-43992.94520836,0.000229,2]
[315047162,1708774240902,-1378.17499987,0.000229,2]
[315047163,1708774240960,-500.0,0.000229,2]
[315047164,1708774241020,-632.0,0.000229,2]
[315047172,1708774244575,-27443.23443056,0.000229,2]
[315047173,1708774244589,-1723.83021253,0.000229,2]
[315047174,1708774244601,-1219.57530438,0.000229,2]
[315047178,1708774244754,-766200.0,0.000229,2]
[315047186,1708774246412,-329.80602526,0.000229,2]
[315047187,1708774249544,266.069283,0.00024658,7]
[315047188,1708774263827,151.0,0.00024658,7]
[315047189,1708774272425,151.0,0.00024658,7]
[315047190,1708774454321,400.08,0.00020587,2]
[315047191,1708774490350,150.0,0.00022,2]
[315047192,1708774510913,1296.00202144,0.00022288,2]
[315047193,1708774517715,1507.92725534,0.00021856,2]
[315047194,1708774518745,1507.92725534,0.00022043,2]
[315047195,1708774564262,155.95,0.00022246,2]
[315047196,1708774584116,151.04,0.00022006,2]
[315047197,1708774584318,151.04,0.00022122,2]
[315047198,1708774584588,151.04,0.00022237,2]
[315047199,1708774584791,151.04,0.00022353,2]
[315047200,1708774617381,509.02,0.00021899,2]
[315047201,1708774646902,609.6,0.00021899,2]
[315047202,1708774651094,1341.42763619,0.00020959,2]
[315047203,1708774651306,1515.9180955,0.00021834,2]
[315047204,1708774651666,1515.9180955,0.00021932,2]
[315047205,1708774652015,1515.9180955,0.00022254,2]
[315047206,1708774652600,1341.42763619,0.00021353,2]
[315047207,1708774654264,154.54387429,0.00022,2]
[315047208,1708774654442,1341.42763619,0.00021591,2]
[315047209,1708774669229,1341.42763619,0.00021779,2]
[315047210,1708774669961,1341.42763619,0.00022065,2]
[315047211,1708774670217,1341.42763619,0.00022208,2]
[315047212,1708774700992,2000.0,0.00021904,2]
[315047213,1708774734775,279.58,0.00021904,2]
[315047214,1708774735891,174.5,0.00021904,2]
[315047215,1708774763231,250.0,0.00021903,2]
[315047216,1708774772196,500.0,0.00021878,2]
[315047217,1708774773117,1515.9180956,0.00022401,2]
[315047218,1708774908992,423.28,0.00020005,2]
[315047219,1708774909401,423.28,0.00022268,2]
[315047220,1708774918469,166.22,0.00021916,2]
[315047221,1708775009399,1341.4276362,0.00022391,2]
[315047222,1708775038923,155.95,0.00022152,2]
[315047223,1708775044697,204.0,0.0002157,2]
[315047225,1708775137969,1341.4276362,0.00022206,2]
[315047230,1708775251411,756.16,0.00021896,2]
[315047238,1708775422463,2000.0,0.00021863,2]
[315047245,1708775431621,-155.0,0.00022452,3]
[315047246,1708775431630,-1049.49088706,0.00022452,2]
[315047247,1708775431640,-213.47486065,0.00022453,2]
[315047248,1708775431649,-151.04,0.00022469,2]
[315047249,1708775431659,-166.3,0.00022568,2]
[315047250,1708775431668,-151.04,0.00022585,2]
[315047251,1708775431687,-158.67828649,0.00022595,2]
[315047252,1708775431699,-166.31,0.00022695,2]
[315047253,1708775431708,-150.0,0.00022699,2]